Workbook

Sheet DOMESTICO
A1: Unità domestica residente | H1: Unità | I1: 1
A2: Data inizio periodo consumo | F2: =Tabella_ripartizione!C1 -> 00:00:00
A3: Data fine periodo consumo | F3: =Tabella_ripartizione!C2 -> 00:00:00
A4: Giorni di consumo | F4: =+F3-F2+1 -> 1
A5: Fognatura | F5: =Tabella_ripartizione!C4 -> 1 | G5: (0 = esente, 1=assoggettato)
A6: Depurazione | F6: =Tabella_ripartizione!C5 -> 1 | G6: (0 = esente, 1=assoggettato)
A7: Consumo misurato
A8: Numero di componenti nucleo familiare
A10: Tariffe TICSI 2024
A11: Domestico Residente | B11: Fasce anno (m3) | D11: Fasce pro-die (m3) | F11: mc riarticolati | G11: Importi servizio | J11: Importi Quota fissa | K11: Importi perequazione
B12: da | C12: a | D12: da | E12: a | F12: =+F17+F16+F15+F14+F13 ->  | G12: Acqua | H12: Fogna | I12: Depurazione | J12: Acqua | K12: Acqua | L12: Fogna | M12: Depurazione | N12: Totali
B13: 0 | C13: =VLOOKUP(F8,Fasce!A:B,2,FALSE) ->  | D13: 0 | E13: =+ROUND(C13/365*$F$4,0) ->  | F13: =+IF(F7>=E13,E13,F7) ->  | G13: =+Tariffe!$A$3*F13 ->  | H13: =+Tariffe!$B$3*F13*$F$5 ->  | I13: =+Tariffe!$C$3*F13*$F$6 ->  | N13: =+ROUND((G13+H13+I13),2) -> 
B14: =+C13 ->  | C14: =VLOOKUP(F8,Fasce!A:C,3,FALSE) ->  | D14: =+E13 ->  | E14: =+ROUND(C14/365*$F$4,0) ->  | F14: =+IF(F7>=E14,E14-E13,IF(F7>=E13,F7-E13,IF(F7<E13,0))) ->  | G14: =+Tariffe!$A$4*F14 ->  | H14: =+Tariffe!$B$3*F14*$F$5 ->  | I14: =+Tariffe!$C$3*F14*$F$6 ->  | N14: =+ROUND((G14+H14+I14),2) -> 
B15: =+C14 ->  | C15: =VLOOKUP(F8,Fasce!A:D,4,FALSE) ->  | D15: =+E14 ->  | E15: =+ROUND(C15/365*$F$4,0) ->  | F15: =+IF(F7>=E15,E15-E14,IF(F7>=E14,F7-E14,IF(F7<E14,0))) ->  | G15: =+Tariffe!$A$5*F15 ->  | H15: =+Tariffe!$B$3*F15*$F$5 ->  | I15: =+Tariffe!$C$3*F15*$F$6 -> 
B16: =+C15 ->  | C16: =VLOOKUP(F8,Fasce!A:E,5,FALSE) ->  | D16: =+E15 ->  | E16: =+ROUND(C16/365*$F$4,0) ->  | F16: =+IF(F7>=E16,E16-E15,IF(F7>=E15,F7-E15,IF(F7<E15,0))) ->  | G16: =+Tariffe!$A$6*F16 ->  | H16: =+Tariffe!$B$3*F16*$F$5 ->  | I16: =+Tariffe!$C$3*F16*$F$6 -> 
B17: =+C16 ->  | C17: 999999 | D17: =+E16 ->  | E17: 999999 | F17: =+IF(F7>=E17,E17-E16,IF(F7>=E16,F7-E16,IF(F7<E16,0,F7-E16))) ->  | G17: =+Tariffe!$A$7*F17 ->  | H17: =+Tariffe!$B$3*F17*$F$5 ->  | I17: =+Tariffe!$C$3*F17*$F$6 -> 
J18: =+Tariffe!$E$3*DOMESTICO!$F$4/365 -> 0.05742401918 | N18: =+ROUND(J18,2) -> 0.06
K19: =+(Tariffe!$I$3+Tariffe!$J$3+Tariffe!$K$3+Tariffe!$L$3+Tariffe!$M$3)*DOMESTICO!F7 -> 0 | L19: =+(Tariffe!$I$3+Tariffe!$J$3+Tariffe!$K$3+Tariffe!$L$3+Tariffe!$M$3)*DOMESTICO!F7*F5 -> 0 | M19: =+(Tariffe!$I$3+Tariffe!$J$3+Tariffe!$K$3+Tariffe!$L$3)*DOMESTICO!F7*F6 -> 0 | N19: =+ROUND(K19+L19+M19,2) -> 0
N20: =SUM(N13:N19) ->  | O20: Imponibile
N21: =+ROUND(N20*0.1,2) ->  | O21: IVA (10%)
N22: =SUM(N20:N21) ->  | O22: Totale corrispettivi

Sheet DOMESTICO_NR
A1: Unità domestico non residente | H1: Unità | I1: 1
A2: Data inizio periodo consumo | F2: =Tabella_ripartizione!C1 -> 00:00:00
A3: Data fine periodo consumo | F3: =Tabella_ripartizione!C2 -> 00:00:00
A4: Giorni di consumo | F4: =+F3-F2+1 -> 1
A5: Fognatura | F5: =Tabella_ripartizione!C4 -> 1 | G5: (0 = esente, 1=assoggettato)
A6: Depurazione | F6: =Tabella_ripartizione!C5 -> 1 | G6: (0 = esente, 1=assoggettato)
A7: Consumo misurato
A9: Tariffe TICSI | J9: 2024
A10: Domestico NON Residente | B10: Fasce anno (m3) | D10: Fasce pro-die (m3) | F10: mc riarticolati | G10: Importi servizio | J10: Importi Quota fissa | K10: Importi perequazione
B11: da | C11: a | D11: da | E11: a | F11: =+F15+F14+F13+F12 -> 0 | G11: Acqua | H11: Fogna | I11: Depurazione | J11: Acqua | K11: Acqua | L11: Fogna | M11: Depurazione | N11: Totali
B12: 0 | C12: 18 | D12: 0 | E12: =+ROUND(C12/365*$F$4,0) -> 0 | F12: =+IF(F7>=E12,E12,F7) -> 0 | G12: =+Tariffe!A18*F12 -> 0 | H12: =+Tariffe!$B$18*F12*$F$5 -> 0 | I12: =Tariffe!$C$18*F12*$F$6 -> 0 | N12: =+ROUND((G12+H12+I12),2) -> 0
B13: =+C12 -> 18 | C13: 72 | D13: =+E12 -> 0 | E13: =+ROUND(C13/365*$F$4,0) -> 0 | F13: =+IF(F7>=E13,E13-E12,IF(F7>=E12,F7-E12,IF(F7<E12,0))) -> 0 | G13: =+Tariffe!A19*F13 -> 0 | H13: =Tariffe!$B$18*F13*$F$5 -> 0 | I13: =Tariffe!$C$3*F13*$F$6 -> 0 | N13: =+ROUND((G13+H13+I13),2) -> 0
B14: =+C13 -> 72 | C14: 99999 | D14: =+E13 -> 0 | E14: 99999 | F14: =+IF(F7>=E14,E14-E13,IF(F7>=E13,F7-E13,IF(F7<E13,0))) -> 0 | G14: =Tariffe!A20*F14 -> 0 | H14: =Tariffe!$B$18*F14*$F$5 -> 0 | I14: =Tariffe!$C$3*F14*$F$6 -> 0 | N14: =+ROUND((G14+H14+I14),2) -> 0
B15: 0 | C15: 0 | D15: 0 | E15: 0 | F15: 0 | G15: 0 | H15: 0 | I15: 0 | N15: =+ROUND((G15+H15+I15),2) -> 0
J16: =+Tariffe!$E$3*DOMESTICO_NR!$F$4/365 -> 0.05742401918 | N16: =+ROUND(J16,2) -> 0.06
K17: =(+Tariffe!$I$3+Tariffe!$J$3+Tariffe!$K$3+Tariffe!$L$3+Tariffe!$M$3)*DOMESTICO_NR!F7 -> 0 | L17: =(+Tariffe!$I$3+Tariffe!$J$3+Tariffe!$K$3+Tariffe!$L$3+Tariffe!$M$3)*DOMESTICO_NR!F7 -> 0 | M17: =COMMERCIALE!K18=(+Tariffe!$I$3+Tariffe!$J$3+Tariffe!$K$3+Tariffe!$L$3+Tariffe!$M$3)*DOMESTICO_NR!F7 -> TRUE | N17: =+ROUND(K17+L17+M17,2) -> 1
N18: =SUM(N12:N17) -> 1.06 | O18: Imponibile
N19: =+ROUND(N18*0.1,2) -> 0.11 | O19: IVA (10%)
N20: =+N19+N18 -> 1.17 | O20: Totale corrispettivi

Sheet COMMERCIALE
A1: Unità commerciale | H1: Unità | I1: 1
A2: Data inizio periodo consumo | F2: =Tabella_ripartizione!C1 -> 00:00:00
A3: Data fine periodo consumo | F3: =Tabella_ripartizione!C2 -> 00:00:00
A4: Giorni di consumo | F4: =+F3-F2+1 -> 1
A5: Fognatura | F5: =Tabella_ripartizione!C4 -> 1 | G5: (0 = esente, 1=assoggettato)
A6: Depurazione | F6: =Tabella_ripartizione!C5 -> 1 | G6: (0 = esente, 1=assoggettato)
A7: Consumo misurato
A9: Tariffe TICSI | J9: 2024
A10: Commerciale artigianale | B10: Fasce anno (m3) | D10: Fasce pro-die (m3) | F10: mc riarticolati | G10: Importi servizio | J10: Importi Quota fissa | K10: Importi perequazione
B11: da | C11: a | D11: da | E11: a | F11: =+F15+F14+F13+F12 -> 0 | G11: Acqua | H11: Fogna | I11: Depurazione | J11: Acqua | K11: Acqua | L11: Fogna | M11: Depurazione | N11: Totali
B12: 0 | C12: 72 | D12: 0 | E12: =+ROUND(C12/365*$F$4,0) -> 0 | F12: =+IF(F7>=E12,E12,F7) -> 0 | G12: =+Tariffe!A11*F12 -> 0 | H12: =+Tariffe!$B11*F12*$F$5 -> 0 | I12: =+Tariffe!$C11*F12*$F$6 -> 0 | N12: =+ROUND((G12+H12+I12),2) -> 0
B13: 72 | C13: 108 | D13: =+E12 -> 0 | E13: =+ROUND(C13/365*$F$4,0) -> 0 | F13: =+IF(F7>=E13,E13-E12,IF(F7>=E12,F7-E12,IF(F7<E12,0))) -> 0 | G13: =+Tariffe!A12*F13 -> 0 | H13: =+Tariffe!$B12*F13*$F$5 -> 0 | I13: =+Tariffe!$C12*F13*$F$6 -> 0 | N13: =+ROUND((G13+H13+I13),2) -> 0
B14: 108 | C14: 144 | D14: =E13 -> 0 | E14: =+ROUND(C14/365*$F$4,0) -> 0 | F14: =+IF(F7>=E14,E14-E13,IF(F7>=E13,F7-E13,IF(F7<E13,0))) -> 0 | G14: =+Tariffe!A13*F14 -> 0 | H14: =+Tariffe!$B13*F14*$F$5 -> 0 | I14: =+Tariffe!$C13*F14*$F$6 -> 0 | N14: 0
B15: =+C14 -> 144 | C15: 180 | D15: =E14 -> 0 | E15: =+ROUND(C15/365*$F$4,0) -> 0 | F15: =+IF(F7>=E15,E15-E14,IF(F7>=E14,F7-E14,IF(F7<E14,0))) -> 0 | G15: =+Tariffe!A14*F15 -> 0 | H15: =+Tariffe!$B14*F15*$F$5 -> 0 | I15: =+Tariffe!$C14*F15*$F$6 -> 0 | N15: 0
B16: =+C15 -> 180 | C16: 99999 | D16: =+E15 -> 0 | E16: 99999 | F16: =+IF(F7>=E16,E16-E15,IF(F7>=E15,F7-E15,IF(F7<E13,0))) -> 0 | G16: =+Tariffe!A15*F16 -> 0 | H16: =+Tariffe!$B15*F16*$F$5 -> 0 | I16: =+Tariffe!$C15*F16*$F$6 -> 0 | N16: 0
J17: =+Tariffe!E11*COMMERCIALE!$F$4/365 -> 0.09789065753 | N17: =+ROUND(J17,2) -> 0.1
K18: =(+Tariffe!$I$3+Tariffe!$J$3+Tariffe!$K$3+Tariffe!$L$3+Tariffe!$M$3)*COMMERCIALE!F7 -> 0 | L18: =(+Tariffe!$I$3+Tariffe!$J$3+Tariffe!$K$3+Tariffe!$L$3+Tariffe!$M$3)*COMMERCIALE!F7 -> 0 | M18: =(+Tariffe!$I$3+Tariffe!$J$3+Tariffe!$K$3+Tariffe!$L$3+Tariffe!$M$3)*COMMERCIALE!F7 -> 0 | N18: =+ROUND(K18+L18+M18,2) -> 0
N19: =SUM(N12:N18) -> 0.1 | O19: Imponibile
N20: =+ROUND(N19*0.1,2) -> 0.01 | O20: IVA (10%)
N21: =+N20+N19 -> 0.11 | O21: Totale corrispettivi

Sheet ALTRI_USI
A1: Unità altri usi | H1: Unità | I1: 1
A2: Unità immobiliare - altri usi | F2: =Tabella_ripartizione!C1 -> 00:00:00
A3: Data fine periodo consumo | F3: =Tabella_ripartizione!C2 -> 00:00:00
A4: Giorni di consumo | F4: =+F3-F2+1 -> 1
A5: Fognatura | F5: =Tabella_ripartizione!C4 -> 1 | G5: (0 = esente, 1=assoggettato)
A6: Depurazione | F6: =Tabella_ripartizione!C5 -> 1 | G6: (0 = esente, 1=assoggettato)
A7: Consumo misurato
A9: Tariffe TICSI | J9: 2024
A10: Commerciale artigianale | B10: Fasce anno (m3) | D10: Fasce pro-die (m3) | F10: mc riarticolati | G10: Importi servizio | J10: Importi Quota fissa | K10: Importi perequazione
B11: da | C11: a | D11: da | E11: a | F11: =+F15+F14+F13+F12 -> 0 | G11: Acqua | H11: Fogna | I11: Depurazione | J11: Acqua | K11: Acqua | L11: Fogna | M11: Depurazione | N11: Totali
B12: 0 | C12: 144 | D12: 0 | E12: =+ROUND(C12/365*$F$4,0) -> 0 | F12: =+IF(F7>=E12,E12,F7) -> 0 | G12: =+Tariffe!A11*F12 -> 0 | H12: =+Tariffe!$B11*F12*$F$5 -> 0 | I12: =+Tariffe!$C11*F12*$F$6 -> 0 | N12: =+ROUND((G12+H12+I12),2) -> 0
B13: 145 | C13: 180 | D13: =+E12 -> 0 | E13: =+ROUND(C13/365*$F$4,0) -> 0 | F13: =+IF(F7>=E13,E13-E12,IF(F7>=E12,F7-E12,IF(F7<E12,0))) -> 0 | G13: =+Tariffe!A12*F13 -> 0 | H13: =+Tariffe!$B12*F13*$F$5 -> 0 | I13: =+Tariffe!$C12*F13*$F$6 -> 0 | N13: =+ROUND((G13+H13+I13),2) -> 0
B14: 181 | C14: 216 | D14: =E13 -> 0 | E14: =+ROUND(C14/365*$F$4,0) -> 1 | F14: =+IF(F7>=E14,E14-E13,IF(F7>=E13,F7-E13,IF(F7<E13,0))) -> 0 | G14: =+Tariffe!A13*F14 -> 0 | H14: =+Tariffe!$B13*F14*$F$5 -> 0 | I14: =+Tariffe!$C13*F14*$F$6 -> 0 | N14: 0
B15: 216 | C15: 252 | D15: =E14 -> 1 | E15: =+ROUND(C15/365*$F$4,0) -> 1 | F15: =+IF(F7>=E15,E15-E14,IF(F7>=E14,F7-E14,IF(F7<E14,0))) -> 0 | G15: =+Tariffe!A14*F15 -> 0 | H15: =+Tariffe!$B14*F15*$F$5 -> 0 | I15: =+Tariffe!$C14*F15*$F$6 -> 0 | N15: 0
B16: =+C15 -> 252 | C16: 99999 | D16: =+E15 -> 1 | E16: 99999 | F16: =+IF(F7>=E16,E16-E15,IF(F7>=E15,F7-E15,IF(F7<E13,0))) -> FALSE | G16: =+Tariffe!A15*F16 -> 0 | H16: =+Tariffe!$B15*F16*$F$5 -> 0 | I16: =+Tariffe!$C15*F16*$F$6 -> 0 | N16: 0
J17: =+Tariffe!E11*ALTRI_USI!$F$4/365 -> 0.09789065753 | N17: =+ROUND(J17,2) -> 0.1
K18: =(+Tariffe!$I$3+Tariffe!$J$3+Tariffe!$K$3+Tariffe!$L$3+Tariffe!$M$3)*ALTRI_USI!F7 -> 0 | L18: =(+Tariffe!$I$3+Tariffe!$J$3+Tariffe!$K$3+Tariffe!$L$3+Tariffe!$M$3)*ALTRI_USI!F7 -> 0 | M18: =(+Tariffe!$I$3+Tariffe!$J$3+Tariffe!$K$3+Tariffe!$L$3+Tariffe!$M$3)*ALTRI_USI!F7 -> 0 | N18: =+ROUND(K18+L18+M18,2) -> 0
N19: =SUM(N12:N18) -> 0.1 | O19: Imponibile
N20: =+ROUND(N19*0.1,2) -> 0.01 | O20: IVA (10%)
N21: =+N20+N19 -> 0.11 | O21: Totale corrispettivi

Sheet Tariffe
A1: importi consumo uso domesico | E1: importi quota fissa uso domesico | I1: importi perequazione
A2: acqua | B2: fognatura | C2: depurazione | E2: acqua | I2: UI1 | J2: UI2 | K2: UI3 | L2: UI4
A3: 0.56884 | B3: 0.106546 | C3: 0.76268 | E3: 20.959767 | I3: 0.004 | J3: 0.009 | K3: 0.0179 | L3: 0
A4: 1.004115 | B4: 0.106546 | C4: 0.76268
A5: 1.296532 | B5: 0.106546 | C5: 0.76268
A6: 1.732908 | B6: 0.106546 | C6: 0.76268
A7: 2.218771 | B7: 0.106546 | C7: 0.76268
A9: import i uso artigianale e commerciale | E9: importi quota fissa uso non domesico
A10: acqua | B10: fognatura | C10: depurazione | E10: acqua
A11: 1.214656 | B11: 0.106546 | C11: 0.76268 | E11: 35.73009
A12: 1.61954 | B12: 0.106546 | C12: 0.76268
A13: 2.105403 | B13: 0.106546 | C13: 0.76268
A14: 2.591265 | B14: 0.106546 | C14: 0.76268
A15: 2.672242 | B15: 0.106546 | C15: 0.76268
A16: importi consumo uso domesico non residente
A17: acqua | B17: fognatura | C17: depurazione
A18: 1.004115 | B18: 0.106546 | C18: 0.76268
A19: 1.732908 | B19: 0.106546 | C19: 0.76268
A20: 2.218771 | B20: 0.106546 | C20: 0.76268

Sheet Fasce
A1: componente | B1: fascia_1 | C1: fascia_2 | D1: fascia_3 | E1: fascia_4
A2: 1 | B2: 24 | C2: 48 | D2: 72 | E2: 96
A3: 2 | B3: =B2*A3 -> 48 | C3: =C2*A3 -> 96 | D3: =D2*A3 -> 144 | E3: =E2*A3 -> 192
A4: 3 | B4: =B2*A4 -> 72 | C4: =C2*A4 -> 144 | D4: =D2*A4 -> 216 | E4: =E2*A4 -> 288
A5: 4 | B5: =B2*A5 -> 96 | C5: =C2*A5 -> 192 | D5: =D2*A5 -> 288 | E5: =E2*A5 -> 384
A6: 5 | B6: =B5+24 -> 120 | C6: =C5+C2 -> 240 | D6: 360 | E6: =E5+96 -> 480
A7: 6 | B7: 144 | C7: 288 | D7: 432 | E7: 576
A8: 7 | B8: 168 | C8: 336 | D8: 504 | E8: 672
A9: 8 | B9: 192 | C9: 384 | D9: 576 | E9: 768
A10: 9 | B10: 216 | C10: 432 | D10: 648 | E10: 864
A11: 10 | B11: 240 | C11: 480 | D11: 720 | E11: 960

Sheet Tabella_ripartizione
B1: Data inizio periodo consumo
B2: Data fine periodo consumo
B3: Giorni di consumo | C3: =+C2-C1+1 -> 1
B4: Fognatura | C4: 1 | D4: (0 = esente, 1=assoggettato)
B5: Depurazione | C5: 1 | D5: (0 = esente, 1=assoggettato)
B7: Totale bolletta | E7: Totale quota diretta | F7: Totale delta | G7: Totale ripartizione
B8: delta da ripartire | C8: =+C7-E8 -> 0 | E8: =SUM(E12:E65507) -> 0 | F8: =SUM(F12:F65507) ->  | G8: =SUM(G12:G171) -> 
B11: Tabella consumi e residenti | C11: Consumo | D11: Residenti | E11: Quota diretta | F11: Riparto delta | G11: Totale ripartito
B12: Unità domestica residente #1 | F12: =+ROUND(E12/$E$8*$C$8,2) ->  | G12: =SUM(E12:F12) -> 
B13: Unità domestica residente #2 | F13: =+ROUNDDOWN(E13/$E$8*$C$8,2) ->  | G13: =SUM(E13:F13) -> 
B14: Unità domestica residente #3
B15: Unità domestica residente #4
B16: Unità domestica residente #5
B17: Unità domestica residente #6
B18: Unità domestica residente #7
B19: Unità domestica residente #8
B20: Unità domestica residente #9
B21: Unità domestica residente #10
B22: Unità domestica residente #11
B23: Unità domestica residente #12
B24: Unità domestica residente #13
B25: Unità domestica residente #14
B26: Unità domestica residente #15
B27: Unità domestica residente #16
B28: Unità domestica residente #17
B29: Unità domestica residente #18
B30: Unità domestica residente #19
B31: Unità domestica residente #20
B32: Unità domestica residente #21
B33: Unità domestica residente #22
B34: Unità domestica residente #23
B35: Unità domestica residente #24
B36: Unità domestica residente #25
B37: Unità domestica residente #26
B38: Unità domestica residente #27
B39: Unità domestica residente #28
B40: Unità domestica residente #29
B41: Unità domestica residente #30
B42: Unità domestica residente #31
B43: Unità domestica residente #32
B44: Unità domestica residente #33 | G44: =SUM(E44:F44) -> 
B45: Unità domestica residente #34
B46: Unità domestica residente #35
B47: Unità domestica residente #36
B48: Unità domestica residente #37
B49: Unità domestica residente #38
B50: Unità domestica residente #39
B51: Unità domestica residente #40
B52: Unità domestica residente #41
B53: Unità domestica residente #42
B54: Unità domestica residente #43
B55: Unità domestica residente #44
B56: Unità domestica residente #45
B57: Unità domestica residente #46
B58: Unità domestica residente #47
B59: Unità domestica residente #48
B60: Unità domestica residente #49
B61: Unità domestica residente #50
B62: Unità domestica residente #51
B63: Unità domestica residente #52
B64: Unità domestica residente #53
B65: Unità domestica residente #54
B66: Unità domestica residente #55
B67: Unità domestica residente #56
B68: Unità domestica residente #57
B69: Unità domestica residente #58
B70: Unità domestica residente #59
B71: Unità domestica residente #60
B72: Unità domestica residente #61
B73: Unità domestica residente #62
B74: Unità domestica residente #63
B75: Unità domestica residente #64
B76: Unità domestica residente #65
B77: Unità domestica residente #66 | F77: =+ROUNDDOWN(E77/$E$8*$C$8,2) -> 
B78: Unità domestica residente #67
B79: Unità domestica residente #68
B80: Unità domestica residente #69
B81: Unità domestica residente #70
B82: Unità domestica residente #71
B83: Unità domestica residente #72
B84: Unità domestica residente #73
B85: Unità domestica residente #74
B86: Unità domestica residente #75
B87: Unità domestica residente #76
B88: Unità domestica residente #77
B89: Unità domestica residente #78
B90: Unità domestica residente #79
B91: Unità domestica residente #80
B92: Unità domestica residente #81
B93: Unità domestica residente #82 | G93: =SUM(E93:F93) -> 
B94: Unità domestica residente #83
B95: Unità domestica residente #84
B96: Unità domestica residente #85
B97: Unità domestica residente #86
B98: Unità domestica residente #87
B99: Unità domestica residente #88
B100: Unità domestica residente #89
B101: Unità domestica residente #90
B102: Unità domestica residente #91
B103: Unità domestica residente #92
B104: Unità domestica residente #93
B105: Unità domestica residente #94
B106: Unità domestica residente #95
B107: Unità domestica residente #96
B108: Unità domestica residente #97
B109: Unità domestica residente #98
B110: Unità domestica residente #99
B111: Unità domestica residente #100
B112: Unità domestica non residente #1 | G112: =SUM(E112:F112) -> 
B113: Unità domestica non residente #2
B114: Unità domestica non residente #3
B115: Unità domestica non residente #4
B116: Unità domestica non residente #5
B117: Unità domestica non residente #6
B118: Unità domestica non residente #7
B119: Unità domestica non residente #8
B120: Unità domestica non residente #9
B121: Unità domestica non residente #10
B122: Unità domestica non residente #11
B123: Unità domestica non residente #12
B124: Unità domestica non residente #13
B125: Unità domestica non residente #14
B126: Unità domestica non residente #15
B127: Unità domestica non residente #16
B128: Unità domestica non residente #17
B129: Unità domestica non residente #18
B130: Unità domestica non residente #19
B131: Unità domestica non residente #20
B132: Unità domestica non residente #21
B133: Unità domestica non residente #22
B134: Unità domestica non residente #23
B135: Unità domestica non residente #24
B136: Unità domestica non residente #25
B137: Unità domestica non residente #26
B138: Unità domestica non residente #27
B139: Unità domestica non residente #28
B140: Unità domestica non residente #29
B141: Unità domestica non residente #30 | F141: =+ROUNDDOWN(E141/$E$8*$C$8,2) -> 
B142: Unità commerciale #1
B143: Unità commerciale #2 | G143: =SUM(E143:F143) -> 
B144: Unità commerciale #3
B145: Unità commerciale #4
B146: Unità commerciale #5
B147: Unità commerciale #6
B148: Unità commerciale #7
B149: Unità commerciale #8
B150: Unità commerciale #9
B151: Unità commerciale #10
B152: Unità commerciale #11
B153: Unità commerciale #12
B154: Unità commerciale #13
B155: Unità commerciale #14
B156: Unità commerciale #15
B157: Altri Usi #1
B158: Altri Usi #2
B159: Altri Usi #3 | G159: =SUM(E159:F159) -> 
B160: Altri Usi #4
B161: Altri Usi #5
B162: Altri Usi #6
B163: Altri Usi #7
B164: Altri Usi #8
B165: Altri Usi #9
B166: Altri Usi #10
B167: Altri Usi #11
B168: Altri Usi #12
B169: Altri Usi #13
B170: Altri Usi #14
B171: Altri Usi #15
